bitfinex/quotes_SOLUSD_20251202
["timestamp","ask_amount","ask_price","bid_price","bid_amount"]
[1764713270455,27.67240019,139.3,139.29,0.2]
[1764713271232,28.9025133,139.3,139.29,0.2]
[1764713271438,36.8225133,139.3,139.29,0.2]
[1764713271739,25.78880892,139.3,139.29,0.2]
[1764713271937,44.00126419,139.3,139.29,0.2]
[1764713272133,10.29182514,139.32,139.29,0.2]
[1764713272348,7.92,139.3,139.29,0.2]
[1764713272958,8.59,139.3,139.29,0.2]
[1764713274443,17.39994492,139.3,139.29,0.2]
[1764713275349,0.67,139.3,139.29,0.2]
[1764713275746,7.92,139.3,139.29,0.2]
[1764713277166,15.98775086,139.32,139.29,11.03291359]
[1764713277167,0.3,139.32,139.29,11.03291359]
[1764713277341,7.92,139.31,139.3,3.11370438]
[1764713277738,9.47994492,139.3,139.28,0.2]
[1764713278044,11.9236493,139.29,139.28,0.2]
[1764713278242,12.5936493,139.29,139.28,0.2]
[1764713278454,19.77291557,139.29,139.28,0.2]
[1764713278857,36.08177957,139.29,139.28,0.2]
[1764713279159,38.95689187,139.29,139.28,0.2]
[1764713281560,22.64802787,139.29,139.28,0.2]
[1764713282568,8.80994492,139.24,139.23,0.2]
[1764713282776,19.8436493,139.24,139.23,0.2]
[1764713282977,12.5936493,139.24,139.23,0.2]
[1764713283181,20.5136493,139.24,139.23,0.2]
[1764713284447,20.5136493,139.24,139.21,0.2]
[1764713284448,16.308864,139.22,139.21,0.2]
[1764713284650,26.6054444,139.22,139.21,0.2]
[1764713284874,27.2754444,139.22,139.21,0.2]
[1764713286051,39.1990937,139.22,139.21,0.2]
[1764713286250,8.80994492,139.21,139.2,0.2]
[1764713286464,20.5336493,139.21,139.2,0.2]
[1764713286671,8.80994492,139.17,139.16,0.2]
[1764713286970,20.5336493,139.17,139.16,0.2]
[1764713288556,27.71910593,139.17,139.16,0.2]
[1764713289355,8.80994492,139.13,139.11,0.2]
[1764713289571,19.8636493,139.12,139.11,0.2]
[1764713290074,20.5336493,139.12,139.11,0.2]
[1764713290276,20.5336493,139.12,139.1,0.2]
[1764713290277,8.80994492,139.11,139.1,0.2]
[1764713290479,16.81804315,139.11,139.1,0.2]
[1764713291549,16.308864,139.12,139.1,0.2]
[1764713291850,0.71,139.19,139.11,7.33809823]
[1764713292178,15.27809823,139.18,139.13,7.33809823]
[1764713292567,8.80994492,139.17,139.14,0.66]
[1764713292768,16.14804315,139.17,139.14,0.66]
[1764713293252,16.14804315,139.17,139.12,7.33809823]
[1764713293253,23.33356843,139.17,139.12,7.18799911]
[1764713293451,24.04356843,139.17,139.12,7.18799911]
[1764713293656,7.33809823,139.16,139.12,7.18799911]
[1764713293867,7.94,139.15,139.13,0.66]
[1764713296583,7.94,139.16,139.14,7.33809823]
[1764713296784,7.94,139.16,139.13,7.99809823]
[1764713297091,7.94,139.16,139.14,0.66]
[1764713297395,7.94,139.16,139.14,7.99809823]
[1764713297574,16.14804315,139.2,139.15,7.33809823]
[1764713297767,7.94,139.19,139.16,0.66]
[1764713297970,16.14804315,139.21,139.16,7.99809823]
[1764713298182,7.94,139.2,139.16,7.99809823]
[1764713298366,9.51994492,139.21,139.17,0.66]
[1764713298566,7.94,139.2,139.17,0.66]
[1764713300280,7.94,139.2,139.17,7.845293]
[1764713301481,15.12400224,139.2,139.1,16.508864]
[1764713301685,8.80994492,139.19,139.16,0.66]
[1764713301887,8.80994492,139.16,139.11,0.66]
[1764713302082,15.27809823,139.15,139.11,0.66]
[1764713302290,15.98809823,139.15,139.11,0.66]
[1764713302592,16.85804315,139.14,139.1,0.2]
[1764713302796,7.33809823,139.13,139.1,0.2]
[1764713302999,16.74994492,139.12,139.1,0.2]
[1764713304399,16.85804315,139.11,139.1,0.2]
[1764713304996,17.018864,139.15,139.1,0.86]
[1764713305202,7.33809823,139.13,139.1,0.86]
[1764713305575,17.45994492,139.14,139.1,0.86]
[1764713305780,7.33809823,139.13,139.1,0.86]
[1764713306301,7.33809823,139.12,139.1,0.2]
[1764713306596,7.94,139.11,139.1,0.2]
[1764713306901,15.27809823,139.11,139.1,0.2]
[1764713307286,7.94,139.11,139.1,0.2]
[1764713307489,7.33809823,139.11,139.1,0.2]
[1764713307787,15.27809823,139.13,139.1,0.86]
[1764713307975,15.27809823,139.13,139.1,0.2]
[1764713307976,15.98809823,139.13,139.1,0.2]
[1764713308296,16.14804315,139.11,139.1,0.2]
[1764713308705,16.85804315,139.11,139.1,0.2]
[1764713309405,24.04659896,139.11,139.1,0.2]
[1764713309780,25.11880892,139.09,139.08,0.2]
[1764713309981,40.41690715,139.09,139.08,0.2]
[1764713310186,41.12690715,139.09,139.08,0.2]
[1764713310501,41.12690715,139.09,139.07,0.2]
[1764713310502,8.80994492,139.08,139.07,0.2]
[1764713310681,16.85804315,139.08,139.07,0.2]
[1764713311598,16.85804315,139.08,139.06,0.2]
[1764713311599,24.04814956,139.08,139.06,0.2]
[1764713311916,24.81804315,139.07,139.06,0.2]
[1764713312089,16.85804315,139.07,139.06,0.2]
[1764713312284,41.12690715,139.07,139.06,0.2]
[1764713312484,7.96,139.07,139.06,0.2]
[1764713313296,7.96,139.07,139.06,0.86]
[1764713314108,7.96,139.08,139.06,0.86]
[1764713314309,7.96,139.08,139.07,0.66]
[1764713314913,7.96,139.08,139.07,7.99809823]
[1764713315218,7.96,139.08,139.07,0.66]
[1764713316111,8.80994492,139.1,139.07,0.66]
[1764713316287,7.96,139.08,139.07,0.66]
[1764713316495,16.82804315,139.1,139.06,0.2]
[1764713316803,7.96,139.09,139.06,0.91]
[1764713317317,8.64,139.09,139.06,0.2]
[1764713317517,16.00056834,139.07,139.06,0.2]
[1764713317907,24.01866657,139.07,139.06,0.2]
[1764713319898,31.29866657,139.07,139.06,0.2]
[1764713320500,7.96,139.07,139.06,0.2]
[1764713321020,7.96,139.07,139.06,0.91]
[1764713321223,7.96,139.07,139.06,15.43920539]
[1764713322417,7.96,139.07,139.06,20.58790145]
[1764713322822,7.96,139.07,139.06,0.91]
[1764713323197,7.96,139.07,139.06,0.2]
[1764713323804,7.96,139.07,139.06,0.87]
[1764713325506,7.96,139.07,139.06,0.2]
[1764713326329,24.62056834,139.07,139.06,0.2]
[1764713327109,23.96056834,139.07,139.06,0.2]
[1764713327325,16.76994492,139.07,139.06,0.2]
[1764713327726,23.96056834,139.07,139.06,0.2]
[1764713328937,24.62056834,139.07,139.06,0.2]
[1764713329307,37.10736263,139.07,139.06,0.2]
[1764713332036,44.79674372,139.06,139.05,0.2]
[1764713332240,45.45674372,139.06,139.05,1e-08]
[1764713332740,32.96994943,139.06,139.05,1e-08]
[1764713332932,45.45674372,139.06,139.05,1e-08]
[1764713334539,32.96994943,139.06,139.05,1e-08]
[1764713334731,53.41674372,139.06,139.05,1e-08]
[1764713335528,40.92994943,139.06,139.05,1e-08]
[1764713335842,53.41674372,139.06,139.05,1e-08]
[1764713336857,52.75674372,139.06,139.05,1e-08]
[1764713337031,53.41674372,139.06,139.05,1e-08]
[1764713337535,45.45674372,139.06,139.05,1e-08]
[1764713337742,53.41674372,139.06,139.05,1e-08]
[1764713341954,44.79674372,139.06,139.05,1e-08]
[1764713342175,52.75674372,139.06,139.05,1e-08]
[1764713342377,7.19079961,139.07,139.05,0.67000001]
[1764713342676,7.96,139.06,139.05,0.67000001]
[1764713343080,15.15114051,139.06,139.05,0.67000001]
[1764713343282,7.96,139.06,139.05,0.67000001]
[1764713343583,8.80994492,139.08,139.05,0.67000001]
[1764713343753,7.96,139.06,139.05,0.67000001]
[1764713347173,7.188275,139.12,139.05,20.34841604]
[1764713347373,12.48679429,139.09,139.05,0.67000001]
[1764713347579,29.25673921,139.08,139.05,0.67000001]
[1764713347882,7.96,139.07,139.05,0.67000001]
[1764713349065,20.44679429,139.07,139.05,0.67000001]
[1764713349267,29.44787972,139.06,139.05,1e-08]
[1764713351084,36.74787972,139.06,139.05,1e-08]
[1764713351467,37.40787972,139.06,139.05,1e-08]
[1764713352601,28.78787972,139.06,139.05,1e-08]
[1764713352785,37.42787972,139.06,139.05,1e-08]
[1764713352960,28.78787972,139.06,139.05,1e-08]
[1764713353160,37.42787972,139.06,139.05,1e-08]
[1764713353465,53.73674372,139.06,139.05,1e-08]
[1764713354067,53.43674372,139.06,139.05,1e-08]
[1764713354287,37.12787972,139.06,139.05,1e-08]
[1764713354676,8.80994492,139.05,139.04,1e-08]
[1764713354868,21.97673921,139.05,139.04,1e-08]
[1764713355494,29.16839688,139.05,139.04,1e-08]
[1764713358475,29.46839688,139.05,139.04,1e-08]
[1764713359104,37.42839688,139.05,139.04,1e-08]
[1764713360100,29.46839688,139.05,139.04,1e-08]
[1764713360267,37.42839688,139.05,139.04,1e-08]
[1764713360469,29.46839688,139.05,139.04,1e-08]
[1764713360695,28.48839688,139.05,139.04,1e-08]
[1764713360887,52.75726088,139.05,139.04,1e-08]
[1764713361069,53.43726088,139.05,139.04,1e-08]
[1764713361786,52.75726088,139.05,139.04,1e-08]
[1764713362969,19.67845196,139.05,139.04,1e-08]
[1764713363188,36.44839688,139.05,139.04,0.70000001]
[1764713363787,36.44839688,139.05,139.04,1e-08]
[1764713364175,36.44839688,139.05,139.04,0.70000001]
[1764713364370,28.85562633,139.05,139.04,0.70000001]
[1764713364595,23.96160259,139.05,139.04,1e-08]
[1764713364775,28.85562633,139.05,139.04,1e-08]
[1764713366087,16.00160259,139.05,139.04,0.70000001]
[1764713366287,0.3,139.05,139.04,0.70000001]
[1764713366483,8.26,139.05,139.04,0.70000001]
[1764713367090,0.3,139.05,139.04,0.70000001]
[1764713367294,8.26,139.05,139.04,0.70000001]
[1764713367579,9.10994492,139.08,139.04,20.38686377]
[1764713367804,7.96,139.07,139.04,13.19468886]
[1764713368013,0.3,139.08,139.05,0.7]
[1764713368303,7.96,139.07,139.05,13.19468885]
[1764713368484,7.96,139.07,139.06,0.7]
[1764713370303,7.96,139.07,139.06,13.19468885]
[1764713370508,7.96,139.07,139.06,20.38582936]
[1764713370896,7.96,139.07,139.06,13.19468885]
[1764713371288,7.96,139.07,139.06,20.38582936]
[1764713374119,7.18909044,139.1,139.06,7.89114051]
[1764713374415,8.26,139.09,139.07,0.7]
[1764713374998,7.96,139.08,139.07,0.7]
[1764713375300,7.96,139.08,139.05,0.7]
[1764713375691,21.30463377,139.07,139.04,1e-08]
[1764713375889,21.30463377,139.07,139.04,0.70000001]
[1764713375890,0.3,139.06,139.04,0.70000001]
[1764713376304,8.80994492,139.11,139.05,12.49468885]
[1764713376492,7.96,139.1,139.07,12.49468885]
[1764713376890,7.96,139.1,139.08,0.72]
[1764713377602,15.14925332,139.1,139.08,0.72]
[1764713378106,7.96,139.1,139.08,0.72]
[1764713378808,15.14908311,139.1,139.08,0.72]
[1764713379109,7.96,139.1,139.08,0.72]
[1764713379494,7.96,139.1,139.08,7.91008344]
[1764713379806,7.96,139.1,139.08,0.72]
[1764713380408,7.96,139.09,139.08,0.72]
[1764713380704,8.80994492,139.08,139.04,0.72000001]
[1764713380907,22.00463377,139.08,139.04,0.72000001]
[1764713381083,12.49468885,139.07,139.04,0.72000001]
[1764713381286,7.96,139.06,139.04,0.72000001]
[1764713381606,7.96,139.06,139.04,7.9119964]
[1764713384288,7.96,139.06,139.05,0.66]
[1764713388806,0.3,139.07,139.05,10.98181583]
[1764713389009,7.96,139.06,139.05,10.98181583]
[1764713389206,7.96,139.06,139.05,10.32181583]
[1764713389723,7.96,139.06,139.05,10.98181583]
[1764713390117,0.3,139.07,139.05,10.98181583]
[1764713390317,0.3,139.07,139.06,0.66]
[1764713390513,8.26,139.07,139.06,3.79035804]
[1764713390695,0.3,139.07,139.06,3.79035804]
[1764713392117,7.96,139.08,139.06,3.79035804]
[1764713392316,7.96,139.08,139.07,7.85062342]
[1764713392826,7.96,139.08,139.07,10.98098146]
[1764713393132,7.96,139.09,139.07,10.98098146]
[1764713393331,7.96,139.09,139.08,0.66]
[1764713393912,0.3,139.11,139.08,0.66]
[1764713394111,7.96,139.1,139.08,0.66]
[1764713394320,0.3,139.11,139.08,7.84982959]
[1764713394628,7.96,139.1,139.08,7.84982959]
[1764713395127,8.66,139.1,139.06,3.79035804]
[1764713395312,8.66,139.1,139.06,3.13035804]
[1764713395504,8.66,139.1,139.07,0.66]
[1764713396325,8.66,139.1,139.07,7.19062342]
[1764713396633,7.96,139.1,139.07,7.19062342]
[1764713396933,0.7,139.14,139.09,3.13035804]
[1764713397109,7.96,139.13,139.09,3.13035804]
[1764713397310,11.09035804,139.13,139.07,28.29754002]
[1764713397611,11.09035804,139.13,139.09,0.66]
[1764713397612,7.96,139.12,139.09,0.66]
[1764713398819,7.18759926,139.13,139.09,10.9795423]
[1764713399034,7.96,139.11,139.09,10.9795423]
[1764713399331,7.96,139.11,139.1,0.66]
[1764713399528,7.88734335,139.14,139.1,3.79035804]
[1764713399725,7.96,139.13,139.11,3.13035804]
[1764713399932,7.96,139.13,139.11,3.79035804]
[1764713400137,7.96,139.13,139.11,0.66]
[1764713400311,17.008864,139.15,139.12,0.66]
[1764713400629,7.96,139.14,139.12,0.66]
[1764713400832,7.96,139.14,139.1,3.79035804]
[1764713401027,7.96,139.14,139.11,7.84855581]
[1764713401336,8.66,139.14,139.11,7.84855581]
[1764713402030,11.94030296,139.12,139.07,0.66]
[1764713402206,11.09035804,139.11,139.07,0.66]
[1764713402411,11.79035804,139.11,139.07,0.66]
[1764713403128,11.79035804,139.11,139.07,7.85021244]
[1764713403311,18.97905069,139.11,139.07,7.85021244]
[1764713403511,3.13035804,139.1,139.07,0.66]
[1764713403731,3.13035804,139.09,139.07,0.66]
[1764713403921,7.96,139.08,139.06,0.66]
[1764713404844,7.96,139.08,139.06,7.85097474]
[1764713405032,13.65212121,152.88,139.07,3.13035804]
[1764713405033,47.25265562,139.2,139.07,3.13035804]
[1764713405211,3.13035804,139.15,139.1,3.13035804]
[1764713405412,7.96,139.14,139.1,3.13035804]
[1764713405717,7.96,139.14,139.11,0.66]
[1764713406035,15.14704253,139.14,139.11,0.66]
[1764713406238,3.13035804,139.13,139.1,0.66]
[1764713406534,7.96,139.14,139.11,0.66]
[1764713407130,7.96,139.13,139.11,0.66]
[1764713407432,16.308864,139.17,139.11,0.66]
[1764713407433,3.43035804,139.17,139.11,0.66]
[1764713407638,3.43035804,139.17,139.12,3.13035804]
[1764713407639,7.96,139.16,139.12,3.13035804]
[1764713408112,15.14598659,139.16,139.13,7.84743232]
[1764713408513,15.14598659,139.16,139.13,0.66]
[1764713409238,7.96,139.16,139.13,7.84746419]
[1764713410048,8.80994492,139.18,139.15,3.13035804]
[1764713410049,7.96,139.18,139.15,3.13035804]
[1764713410231,7.96,139.18,139.16,7.84597298]
[1764713411539,7.96,139.18,139.17,0.66]
[1764713411927,7.96,139.18,139.16,11.02633102]
[1764713412257,11.78035804,139.17,139.12,0.71]
[1764713412547,3.13035804,139.15,139.12,0.71]
[1764713413448,3.13035804,139.15,139.12,7.89796443]
[1764713413630,11.00648063,139.16,139.12,7.89796443]
[1764713414550,15.20617332,139.16,139.12,7.89796443]
[1764713416369,7.33005073,139.15,139.12,0.71]
[1764713416860,7.33005073,139.15,139.12,7.89797437]
[1764713417363,14.51655955,139.15,139.12,0.71]
[1764713417655,15.29005073,139.14,139.1,7.8990726]
[1764713417856,15.29005073,139.14,139.11,0.71]
[1764713417857,15.98005073,139.14,139.11,0.71]
[1764713418161,15.29005073,139.14,139.11,0.71]
[1764713418761,7.96,139.14,139.11,0.71]
[1764713418945,7.96,139.14,139.11,7.89839592]
[1764713419542,7.96,139.14,139.12,0.71]
[1764713421157,0.3,139.16,139.12,15.22801634]
[1764713421359,7.96,139.15,139.12,15.22801634]
[1764713421570,7.96,139.15,139.13,0.71]
[1764713421865,7.96,139.15,139.09,8.04005073]
[1764713421866,24.32891473,139.14,139.09,8.04005073]
[1764713422046,7.33005073,139.12,139.09,0.71]
[1764713422240,15.29005073,139.12,139.09,0.71]
[1764713422454,7.96,139.12,139.09,0.71]
[1764713422846,7.96,139.12,139.1,7.1890726]
[1764713423361,7.96,139.12,139.1,7.8990726]
[1764713423960,0.89,139.2,139.12,8.80994492]
[1764713424166,8.16,139.2,139.15,7.33005073]
[1764713424660,8.85,139.2,139.16,0.71]
[1764713424869,16.03404975,139.2,139.16,7.89574348]
[1764713425061,15.34404975,139.2,139.16,7.89574348]
[1764713425262,15.34404975,139.2,139.17,0.71]
[1764713426062,16.03404975,139.2,139.17,0.71]
[1764713426269,16.03404975,139.2,139.16,14.51579421]
[1764713426466,16.03404975,139.2,139.16,15.22579421]
[1764713427149,8.85,139.2,139.16,15.22579421]
[1764713427472,8.85,139.2,139.17,0.71]
[1764713427642,0.2,139.2,139.19,7.33005073]
[1764713427842,0.2,139.2,139.19,8.04005073]
[1764713428543,0.2,139.2,139.19,0.71]
[1764713428971,0.2,139.2,139.19,8.04005073]
[1764713429471,0.2,139.2,139.19,15.22447489]
[1764713430266,0.2,139.2,139.17,17.9627183]
[1764713430267,0.2,139.2,139.17,7.18540166]
[1764713430469,0.2,139.2,139.18,7.33005073]
[1764713430649,0.2,139.2,139.19,7.33005073]
[1764713432653,0.2,139.2,139.19,14.51447489]
[1764713432867,0.2,139.2,139.19,15.22447489]
[1764713433259,0.2,139.2,139.19,14.51447489]
[1764713434080,0.2,139.2,139.19,15.22447489]
[1764713434281,0.2,139.2,139.19,7.33005073]
[1764713434581,0.2,139.2,139.17,3.83422086]
[1764713434890,0.2,139.2,139.18,3.83422086]
[1764713435058,0.2,139.2,139.18,3.12422086]
[1764713435455,0.2,139.2,139.18,3.83422086]
[1764713436381,0.2,139.2,139.19,10.30864502]
[1764713437278,0.2,139.2,139.19,3.12422086]
[1764713441772,0.2,139.2,139.18,11.01893066]
[1764713442972,0.2,139.2,139.18,10.30893066]
[1764713443789,0.86,139.2,139.18,10.30893066]
[1764713443985,0.2,139.2,139.18,10.30893066]
[1764713444374,0.2,139.2,139.18,11.01893066]
[1764713446500,0.2,139.2,139.18,12.77633974]
[1764713447272,0.2,139.2,139.19,5.59162994]
[1764713448375,0.2,139.23,139.22,16.308864]
[1764713448701,0.2,139.23,139.22,5.59162994]
[1764713449199,0.2,139.23,139.22,12.77450596]
[1764713449392,0.2,139.23,139.22,7.89287602]
[1764713449592,8.82,139.23,139.18,5.59162994]
[1764713449792,0.66,139.22,139.18,12.7765703]
[1764713449986,0.66,139.22,139.19,4.88162994]
[1764713450178,0.66,139.22,139.19,5.59162994]
[1764713450791,0.66,139.22,139.19,12.7755655]
[1764713451900,0.66,139.22,139.2,12.06537202]
[1764713452097,0.66,139.22,139.21,4.88162994]
[1764713452296,0.66,139.22,139.2,12.06537202]
[1764713454709,0.66,139.22,139.2,7.18374208]
[1764713455277,8.46,139.23,139.21,4.88162994]
[1764713455485,0.5,139.23,139.22,4.88162994]
[1764713456100,1.16,139.23,139.2,7.18374208]
[1764713456300,1.16,139.23,139.19,7.18421375]
[1764713456508,0.66,139.22,139.19,7.18421375]
[1764713456716,12.84162994,139.21,139.15,30.74434282]
[1764713457182,0.66,139.2,139.15,30.74434282]
[1764713457686,0.66,139.2,139.16,5.59162994]
[1764713458099,0.66,139.2,139.17,0.71]
[1764713458682,0.66,139.2,139.18,7.18494036]
[1764713459708,7.96,139.21,139.18,30.73892121]
[1764713459709,0.66,139.21,139.18,30.73892121]
[1764713459883,8.62,139.21,139.18,30.73892121]
[1764713460409,0.2,139.23,139.2,4.88162994]
[1764713460577,0.2,139.23,139.22,4.88162994]
[1764713460780,0.2,139.23,139.22,12.77450596]
[1764713460982,1e-08,139.23,139.22,12.77450596]
[1764713466616,1e-08,139.23,139.22,12.06450596]
[1764713468321,0.66000001,139.23,139.22,7.18287602]
[1764713468524,1e-08,139.23,139.22,12.06450596]
[1764713468705,1e-08,139.23,139.22,7.18287602]
[1764713468911,0.66000001,139.23,139.22,7.18287602]
[1764713469318,1e-08,139.23,139.22,7.18287602]
[1764713470215,1e-08,139.23,139.22,4.88162994]
[1764713471138,1e-08,139.23,139.22,12.06450596]
[1764713471917,1e-08,139.23,139.22,7.18287602]
[1764713478933,17.00886401,139.23,139.22,7.18287602]
[1764713479960,17.00886401,139.23,139.15,7.94]
[1764713479961,21.89049395,139.23,139.16,30.69253537]
[1764713480143,4.88162994,139.21,139.16,30.69253537]
[1764713480352,5.58162994,139.22,139.17,4.88162994]
[1764713480565,0.7,139.21,139.17,4.88162994]
[1764713480858,0.7,139.21,139.18,25.14729127]
[1764713481941,0.7,139.21,139.18,30.02892121]
[1764713484564,0.7,139.21,139.18,25.14729127]
[1764713484754,0.7,139.21,139.18,30.02892121]
[1764713484957,16.30886401,139.23,139.18,30.02892121]
[1764713485158,16.30886401,139.23,139.19,0.66]
[1764713485159,0.7,139.22,139.19,0.66]
[1764713485358,0.7,139.22,139.18,30.68892121]
[1764713485568,1e-08,139.23,139.21,4.88162994]
[1764713485754,1e-08,139.23,139.22,4.88162994]
[1764713486744,1e-08,139.23,139.2,4.88162994]
[1764713486942,1e-08,139.23,139.22,4.88162994]
[1764713488060,1e-08,139.23,139.22,12.06450596]
[1764713489869,1e-08,139.23,139.22,12.72450596]
[1764713491044,1e-08,139.23,139.22,12.06450596]
[1764713494370,1e-08,139.23,139.22,12.72450596]
[1764713495363,1e-08,139.23,139.22,21.53445088]
[1764713495972,1e-08,139.23,139.22,29.47445088]
[1764713500553,0.67,139.31,139.25,16.308864]
[1764713500869,0.67,139.31,139.28,4.88162994]
[1764713502458,0.67,139.31,139.27,4.88162994]
[1764713503078,0.67,139.31,139.28,25.12923606]
[1764713505778,0.7,139.33,139.28,65.90977467]
[1764713505973,0.7,139.32,139.28,65.90977467]
[1764713506374,0.7,139.32,139.28,64.14733329]
[1764713506998,0.8,139.34,139.29,3.11918856]
[1764713507367,0.8,139.34,139.3,25.12562813]
[1764713508268,3.91918856,139.34,139.3,25.12562813]
[1764713508894,0.7,139.33,139.3,25.12562813]
[1764713510201,0.1,139.34,139.3,25.12562813]
[1764713510501,0.1,139.34,139.3,64.82857117]
[1764713510909,0.8,139.34,139.3,64.82857117]
[1764713512009,0.8,139.34,139.31,3.11918856]
[1764713512216,0.8,139.34,139.3,64.82857117]
[1764713512911,0.8,139.34,139.3,61.01938261]
[1764713513091,3.91918856,139.34,139.3,61.70938261]
[1764713513294,0.8,139.34,139.31,3.11918856]
[1764713513604,0.1,139.34,139.32,7.17772035]
[1764713514202,0.1,139.34,139.32,10.98690891]
[1764713514808,0.2,139.37,139.33,3.80918856]
[1764713515113,0.9,139.37,139.33,3.80918856]
[1764713515402,0.9,139.37,139.35,7.17617509]
[1764713516271,0.9,139.37,139.35,7.86617509]
[1764713516272,0.2,139.37,139.35,7.86617509]
[1764713516478,0.2,139.37,139.35,7.17617509]
[1764713516677,0.2,139.37,139.35,7.86617509]
[1764713517104,0.2,139.37,139.35,7.17617509]
[1764713517598,0.2,139.37,139.35,0.69]
[1764713519303,0.2,139.37,139.36,7.17566016]
[1764713520003,7.37070534,139.46,139.36,10.98484872]
[1764713520300,3.11918856,139.42,139.37,3.80918856]
[1764713520806,0.7,139.41,139.37,3.80918856]
[1764713521192,3.81918856,139.41,139.38,25.11120676]
[1764713521605,0.7,139.4,139.38,25.11120676]
[1764713522013,33.05880892,139.45,139.38,25.11120676]
[1764713522220,0.7,139.44,139.38,25.80120676]
[1764713522407,3.11918856,139.42,139.38,25.80120676]
[1764713522923,0.7,139.41,139.38,25.80120676]
[1764713523623,0.7,139.43,139.39,0.69]
[1764713523926,0.7,139.43,139.39,3.80918856]
[1764713524227,0.7,139.43,139.4,3.11918856]
[1764713524402,0.7,139.44,139.4,3.80918856]
[1764713524718,0.7,139.44,139.41,25.10580301]
[1764713528005,3.31918856,139.46,139.41,61.6612359]
[1764713528211,0.7,139.45,139.42,0.69]
[1764713529426,0.7,139.45,139.43,7.17205766]
[1764713530420,0.2,139.46,139.43,25.10220181]
[1764713530613,0.2,139.46,139.44,3.80918856]
[1764713530808,3.31918856,139.46,139.43,25.10220181]
[1764713531013,0.9,139.46,139.43,25.79220181]
[1764713531219,0.9,139.46,139.43,25.10220181]
[1764713532221,0.4,139.46,139.41,60.9712359]
[1764713532538,3.11918856,139.47,139.42,0.71]
[1764713533026,3.11918856,139.47,139.42,3.82918856]
[1764713533204,3.11918856,139.47,139.41,64.80042446]
[1764713533404,3.11918856,139.47,139.42,0.71]
[1764713533809,3.11918856,139.47,139.42,3.82918856]
[1764713534011,3.11918856,139.47,139.42,0.71]
[1764713534212,3.11918856,139.47,139.42,3.82918856]
[1764713534213,0.67,139.46,139.42,3.82918856]
[1764713534730,0.67,139.46,139.43,25.10220181]
[1764713538107,0.67,139.46,139.43,25.81220181]
[1764713538521,0.67,139.46,139.43,25.10220181]
[1764713538835,3.78918856,139.46,139.43,25.10220181]
[1764713539030,0.67,139.46,139.43,25.10220181]
[1764713539219,0.67,139.45,139.43,25.10220181]
[1764713539832,0.67,139.45,139.42,7.17240197]
[1764713539833,3.11918856,139.44,139.42,7.17240197]
[1764713540053,0.67,139.45,139.42,7.17240197]
[1764713540247,3.11918856,139.43,139.41,17.93209735]
[1764713540417,3.11918856,139.42,139.41,17.93209735]
[1764713540826,3.78918856,139.42,139.41,17.93209735]
[1764713542749,3.78918856,139.42,139.4,7.17360114]
[1764713542928,3.78918856,139.41,139.4,7.17360114]
[1764713543925,0.67,139.41,139.4,7.17360114]
[1764713544127,3.78918856,139.41,139.4,7.17360114]
[1764713544539,3.78918856,139.43,139.39,25.81886875]
[1764713544840,7.92,139.45,139.4,3.82918856]
[1764713545026,11.70918856,139.45,139.41,0.71]
[1764713545417,0.67,139.44,139.41,0.71]
[1764713546436,3.78918856,139.44,139.42,7.17257208]
[1764713547039,0.67,139.43,139.42,7.17257208]
[1764713549625,0.67,139.43,139.41,25.10454757]
[1764713550046,0.67,139.44,139.41,25.10454757]
[1764713550250,0.67,139.44,139.41,25.81454757]
[1764713554163,3.78918856,139.44,139.41,25.81454757]
[1764713555331,0.71,139.43,139.41,17.931461]